bitfinex/quotes_SOLUSD_20250930
["timestamp","ask_amount","ask_price","bid_price","bid_amount"]
[1759232148904,20.8,206.85,206.82,0.69]
[1759232149196,1.43876456,206.86,206.82,0.69]
[1759232149595,3.25137118,206.87,206.82,0.69]
[1759232149814,1.43876456,206.86,206.82,0.69]
[1759232150031,1.43876456,206.87,206.83,4.83488855]
[1759232150213,1.43876456,206.87,206.84,0.69]
[1759232150603,1.43876456,206.87,206.83,4.83488855]
[1759232150808,0.69,206.86,206.83,4.83488855]
[1759232151122,1.43876456,206.84,206.82,13.59559401]
[1759232151313,0.69,206.83,206.82,13.59559401]
[1759232151512,1.43876456,206.84,206.82,13.59559401]
[1759232151711,0.69,206.84,206.82,13.59559401]
[1759232151918,2.12876456,206.84,206.82,13.59559401]
[1759232152510,1.43876456,206.84,206.82,13.59559401]
[1759232152706,5.52426362,206.86,206.82,13.59559401]
[1759232152707,1.43876456,206.85,206.82,18.43068935]
[1759232153120,1.43876456,206.85,206.83,0.69]
[1759232153524,1.43876456,206.85,206.82,18.43068935]
[1759232153710,1.43876456,206.85,206.84,0.69]
[1759232157531,1.43876456,206.85,206.83,4.83469764]
[1759232157718,1.43876456,206.85,206.83,5.52469764]
[1759232158026,1.43876456,206.85,206.83,4.83469764]
[1759232159314,2.12876456,206.86,206.83,4.83469764]
[1759232160151,2.12876456,206.86,206.82,19.12070521]
[1759232160447,2.12876456,206.86,206.83,0.69]
[1759232160632,1.43876456,206.86,206.83,0.69]
[1759232160830,1.43876456,206.86,206.82,18.43070521]
[1759232161146,1.43876456,206.88,206.84,0.69]
[1759232161455,1.43876456,206.88,206.85,0.69]
[1759232161749,2.12876456,206.88,206.85,0.69]
[1759232162052,2.12876456,206.88,206.85,5.52437049]
[1759232162934,2.12876456,206.88,206.85,4.83437049]
[1759232163435,2.12876456,206.88,206.85,5.52437049]
[1759232163635,2.12876456,206.87,206.84,33.74]
[1759232163833,2.12876456,206.87,206.84,34.43]
[1759232164643,1.43876456,206.87,206.85,0.69]
[1759232165749,0.69,206.89,206.85,5.52437991]
[1759232165968,0.69,206.88,206.85,5.52437991]
[1759232166245,2.12876456,206.88,206.85,5.52437991]
[1759232167368,1.43876456,206.88,206.85,5.52437991]
[1759232167656,2.12876456,206.88,206.85,5.52437991]
[1759232168165,1.43876456,206.88,206.85,5.52437991]
[1759232168365,1.43876456,206.88,206.86,0.69]
[1759232168583,1.43876456,206.89,206.85,4.83437991]
[1759232168733,3.25137118,206.9,206.87,0.69]
[1759232169054,1.43876457,206.91,206.88,0.69]
[1759232169264,2.12876457,206.91,206.88,5.5235446]
[1759232169557,1.43876457,206.91,206.89,0.69]
[1759232169860,2.12876457,206.91,206.88,4.8335446]
[1759232170061,2.12876457,206.91,206.88,5.5235446]
[1759232170630,1.43876457,206.91,206.87,33.74]
[1759232170851,1.43876456,206.88,206.87,33.72]
[1759232171055,2.12876456,206.88,206.87,33.72]
[1759232171562,1.43876456,206.88,206.87,33.72]
[1759232171750,2.12876456,206.89,206.87,33.72]
[1759232171947,1.43876456,206.89,206.87,33.72]
[1759232172144,1.43876456,206.89,206.87,34.41]
[1759232173542,1e-08,206.91,206.87,38.55386907]
[1759232173744,1.43876456,206.9,206.88,0.72]
[1759232174064,1.43876456,206.9,206.87,39.27386907]
[1759232174357,2.13876456,206.89,206.87,33.72]
[1759232174664,1.43876456,206.89,206.87,38.55391206]
[1759232174895,1.43876456,206.9,206.87,39.27391206]
[1759232175562,1.43876456,206.9,206.87,38.55391206]
[1759232175761,1.43876456,206.9,206.88,0.72]
[1759232176485,1.43876456,206.9,206.88,5.55367336]
[1759232176663,1.43876456,206.9,206.88,5.50367336]
[1759232176861,1e-08,206.91,206.89,0.67]
[1759232177386,1e-08,206.91,206.9,0.67]
[1759232177763,1e-08,206.91,206.89,0.67]
[1759232178192,1e-08,206.91,206.89,5.50343099]
[1759232178688,1e-08,206.91,206.9,0.67]
[1759232179565,1e-08,206.91,206.89,0.67]
[1759232179778,1e-08,206.91,206.9,0.67]
[1759232180291,1e-08,206.91,206.88,39.22369393]
[1759232180490,1e-08,206.91,206.88,38.55369393]
[1759232180695,1e-08,206.91,206.89,0.67]
[1759232181064,1.43876457,206.91,206.89,0.67]
[1759232181475,1e-08,206.91,206.89,0.67]
[1759232181681,1e-08,206.91,206.89,5.50344981]
[1759232181886,1e-08,206.91,206.9,0.67]
[1759232184078,1e-08,206.91,206.89,5.50344981]
[1759232184890,1e-08,206.91,206.89,0.67]
[1759232185895,1e-08,206.91,206.88,18.42923]
[1759232186197,2.14876457,206.91,206.89,33.72]
[1759232186404,1.43876457,206.91,206.89,33.72]
[1759232186697,1.43876457,206.91,206.89,34.39]
[1759232187412,2.14876456,206.9,206.87,33.72]
[1759232187697,1.43876456,206.88,206.84,13.59559401]
[1759232187886,2.14876456,206.87,206.84,47.31559401]
[1759232188500,2.14876456,206.87,206.84,52.15024863]
[1759232188806,2.14876456,206.87,206.84,52.82024863]
[1759232189499,2.14876456,206.87,206.84,47.98559401]
[1759232190198,0.71,206.87,206.84,47.98559401]
[1759232190585,0.71,206.87,206.84,52.82023081]
[1759232190785,22.23876456,206.89,206.85,0.67]
[1759232190984,22.94876456,206.89,206.86,0.67]
[1759232191488,22.23876456,206.89,206.84,52.15023081]
[1759232191678,22.23876456,206.89,206.87,0.67]
[1759232191881,22.94876456,206.89,206.85,5.50436737]
[1759232192084,27.78231013,206.89,206.85,0.67]
[1759232192399,0.71,206.88,206.85,0.67]
[1759232192699,0.71,206.88,206.84,52.15020898]
[1759232193005,0.71,206.87,206.84,19.10020898]
[1759232193299,0.71,206.87,206.84,52.82020898]
[1759232193805,27.78231013,206.89,206.84,52.82020898]
[1759232194006,0.71,206.88,206.84,52.82020898]
[1759232194801,0.71,206.88,206.84,52.15020898]
[1759232194980,0.71,206.88,206.84,52.82020898]
[1759232195296,0.71,206.88,206.84,52.15020898]
[1759232195476,0.71,206.88,206.84,52.82020898]
[1759232195900,0.71,206.88,206.84,52.15020898]
[1759232196088,0.71,206.88,206.85,0.67]
[1759232196583,0.71,206.88,206.85,5.50441998]
[1759232197079,0.71,206.88,206.85,0.67]
[1759232197605,22.23876456,206.89,206.85,5.50435757]
[1759232197775,22.23876456,206.89,206.86,0.67]
[1759232198095,22.23876456,206.89,206.85,4.83435757]
[1759232198096,22.94876456,206.89,206.85,4.83435757]
[1759232198289,0.71,206.88,206.85,5.50435757]
[1759232199010,2.14876456,206.87,206.82,0.67]
[1759232199181,0.71,206.87,206.83,0.67]
[1759232199483,22.94876456,206.89,206.84,0.67]
[1759232199686,27.78228854,206.89,206.85,0.67]
[1759232199882,27.07228854,206.89,206.85,0.67]
[1759232200109,0.71,206.88,206.85,0.67]
[1759232201698,0.71,206.87,206.84,4.83443691]
[1759232201889,0.71,206.87,206.83,5.50488855]
[1759232202093,0.71,206.87,206.84,0.69]
[1759232202398,2.14876456,206.87,206.84,0.69]
[1759232202605,1.43876456,206.87,206.84,0.69]
[1759232202978,1.43876456,206.87,206.84,5.52464607]
[1759232203186,2.11876456,206.87,206.84,5.52464607]
[1759232203502,25.63352398,206.89,206.84,4.83464607]
[1759232203797,1.43876456,206.87,206.85,0.69]
[1759232204096,2.11876456,206.87,206.84,4.83464607]
[1759232204308,2.9273342,206.87,206.84,5.52464607]
[1759232206201,0.68,206.87,206.84,5.52464607]
[1759232206506,2.2473342,206.88,206.84,5.52464607]
[1759232206681,2.9273342,206.88,206.84,5.52464607]
[1759232207296,0.68,206.88,206.84,5.52464607]
[1759232207492,0.68,206.87,206.82,52.884629]
[1759232207707,0.68,206.86,206.83,0.69]
[1759232207912,2.2473342,206.86,206.83,0.69]
[1759232208711,2.9273342,206.87,206.82,50.6429123]
[1759232209014,24.05245661,206.89,206.83,0.69]
[1759232209198,2.2473342,206.87,206.83,0.69]
[1759232209509,2.2473342,206.87,206.84,4.8346548]
[1759232209684,2.2473342,206.87,206.84,5.5246548]
[1759232209884,2.2473342,206.87,206.85,0.69]
[1759232211015,2.9273342,206.87,206.84,4.8346548]
[1759232211189,2.9273342,206.87,206.84,5.5246548]
[1759232211505,2.9273342,206.87,206.84,4.8346548]
[1759232211812,2.9273342,206.87,206.83,5.52484503]
[1759232212611,2.9273342,206.86,206.83,0.69]
[1759232213395,2.9273342,206.86,206.83,5.52481911]
[1759232213918,2.2473342,206.87,206.84,0.69]
[1759232214093,2.9273342,206.87,206.84,0.69]
[1759232215688,2.9273342,206.87,206.84,5.52459611]
[1759232216017,7.08132055,206.87,206.82,33.72]
[1759232216217,2.9273342,206.86,206.83,0.69]
[1759232216517,0.68,206.85,206.82,33.72]
[1759232216687,0.68,206.85,206.82,34.41]
[1759232216888,0.68,206.85,206.82,0.69]
[1759232217104,0.68,206.85,206.82,39.24497122]
[1759232217692,2.2473342,206.86,206.82,5.52497122]
[1759232217899,2.9273342,206.86,206.82,5.52497122]
[1759232218096,2.9273342,206.86,206.83,0.69]
[1759232219311,2.9273342,206.86,206.83,5.52484901]
[1759232219912,2.2473342,206.87,206.84,0.69]
[1759232220114,0.68,206.88,206.85,0.69]
[1759232220307,2.9273342,206.88,206.85,0.69]
[1759232220800,2.9273342,206.88,206.83,4.83484901]
[1759232221002,2.9273342,206.87,206.83,5.52484901]
[1759232221508,2.9273342,206.86,206.83,4.83484901]
[1759232221727,2.2473342,206.84,206.82,38.55509844]
[1759232222222,2.2473342,206.84,206.82,39.24509844]
[1759232222528,2.2473342,206.84,206.83,0.69]
[1759232223629,2.2473342,206.85,206.83,5.52488855]
[1759232223827,24.733643,206.89,206.84,0.69]
[1759232224027,2.2473342,206.86,206.84,0.69]
[1759232224230,2.2473342,206.86,206.84,14.28559401]
[1759232224814,2.2473342,206.85,206.84,14.28559401]
[1759232225021,2.2473342,206.85,206.83,38.55488855]
[1759232225317,2.2473342,206.85,206.83,33.72]
[1759232225318,2.2473342,206.84,206.83,33.72]
[1759232225515,2.9273342,206.84,206.81,5.52533426]
[1759232225731,2.2473342,206.82,206.81,33.72]
[1759232226032,2.9273342,206.82,206.81,48.26087196]
[1759232226230,2.9273342,206.82,206.81,33.72]
[1759232226433,2.9273342,206.82,206.78,33.72]
[1759232226616,2.2473342,206.8,206.78,34.41]
[1759232226819,2.2473342,206.8,206.78,33.72]
[1759232227019,2.2473342,206.79,206.78,33.72]
[1759232227423,2.9273342,206.79,206.75,13.59559401]
[1759232227633,2.2473342,206.76,206.73,14.54651247]
[1759232227810,2.9273342,206.75,206.73,14.54651247]
[1759232228014,2.2473342,206.75,206.73,33.72]
[1759232229138,20.8,206.77,206.71,4.8376835]
[1759232229139,2.2473342,206.74,206.71,4.8376835]
[1759232229325,2.2473342,206.73,206.72,33.72]
[1759232229639,20.8,206.77,206.72,39.24744433]
[1759232229847,2.2473342,206.76,206.73,0.69]
[1759232230019,2.2473342,206.76,206.74,0.69]
[1759232230219,2.2473342,206.76,206.72,38.55744433]
[1759232230220,2.2473342,206.76,206.72,33.72]
[1759232230520,2.2473342,206.74,206.72,34.41]
[1759232230925,2.2473342,206.74,206.72,39.2474515]
[1759232231732,26.31605818,206.78,206.73,0.69]
[1759232231931,2.9273342,206.77,206.73,0.69]
[1759232232550,2.2473342,206.75,206.72,33.72]
[1759232232842,2.9673342,206.75,206.72,33.72]
[1759232233049,2.2473342,206.75,206.72,39.26744131]
[1759232233236,0.72,206.77,206.73,0.71]
[1759232233442,2.9673342,206.76,206.73,0.71]
[1759232233747,2.9673342,206.76,206.72,39.26744131]
[1759232234141,2.2473342,206.75,206.72,34.43]
[1759232234529,0.72,206.76,206.73,0.71]
[1759232234738,2.9673342,206.76,206.72,39.26738294]
[1759232234938,2.9673342,206.76,206.73,0.71]
[1759232235245,2.2473342,206.76,206.73,0.71]
[1759232235749,2.9673342,206.76,206.73,5.54719672]
[1759232236428,2.2473342,206.76,206.73,5.54719672]
[1759232236863,20.8,206.77,206.74,0.71]
[1759232237027,23.0473342,206.77,206.74,0.71]
[1759232237752,20.8,206.77,206.75,0.71]
[1759232237929,82.5473342,206.8,206.75,34.43]
[1759232238251,2.9673342,206.8,206.76,0.71]
[1759232238761,2.9673342,206.8,206.77,4.83629153]
[1759232239343,2.2473342,206.78,206.75,33.72]
[1759232239665,2.2473342,206.77,206.75,33.72]
[1759232239832,0.72,206.8,206.76,0.71]
[1759232240148,2.2473342,206.8,206.77,0.71]
[1759232240930,2.2473342,206.79,206.77,5.54622511]
[1759232241131,0.72,206.82,206.77,4.83622511]
[1759232241448,2.2473342,206.8,206.77,4.83622511]
[1759232241759,2.2473342,206.8,206.75,46.521693]
[1759232241760,0.72,206.8,206.76,4.83650115]
[1759232241964,2.2473342,206.79,206.76,5.54650115]
[1759232244156,2.2473342,206.79,206.77,0.71]
[1759232244339,2.2473342,206.8,206.77,0.71]
[1759232244755,2.2473342,206.8,206.78,0.71]
[1759232245164,2.9673342,206.8,206.77,4.83620206]
[1759232245466,2.9673342,206.8,206.76,0.71]
[1759232245467,2.2473342,206.78,206.75,33.72]
[1759232245644,2.9673342,206.77,206.73,0.71]
[1759232245843,2.9673342,206.77,206.74,33.72]
[1759232246162,2.9673342,206.77,206.74,0.71]
[1759232246367,2.9673342,206.77,206.73,33.74]
[1759232246566,0.72,206.77,206.73,34.45]
[1759232246742,0.72,206.79,206.74,0.71]
[1759232246942,2.2473342,206.77,206.74,0.71]
[1759232247349,2.2473342,206.77,206.74,5.54694356]
[1759232247847,2.2473342,206.78,206.75,0.71]
[1759232248054,2.2473342,206.78,206.74,4.83694356]
[1759232248055,2.9673342,206.78,206.74,4.83694356]
[1759232248252,2.9673342,206.78,206.74,5.54694356]
[1759232248650,2.2473342,206.78,206.75,0.71]
[1759232249254,80.3,206.82,206.75,0.71]
[1759232249466,2.2473342,206.8,206.76,4.83652544]
[1759232249670,2.2473342,206.81,206.77,0.71]
[1759232249875,2.2473342,206.81,206.78,0.71]
[1759232251164,20.8,206.83,206.78,0.71]
[1759232251369,2.9673342,206.82,206.79,4.83582378]
[1759232251667,0.72,206.81,206.78,5.54601599]
[1759232251843,2.2473342,206.82,206.79,0.71]
[1759232252257,114.78,206.85,206.79,0.71]
[1759232252258,23.0473342,206.84,206.79,0.71]
[1759232252968,20.8,206.84,206.79,0.71]
[1759232253169,2.2473342,206.84,206.79,0.71]
[1759232254172,2.9673342,206.83,206.79,13.59559401]
[1759232254347,2.2473342,206.83,206.8,0.71]
[1759232254554,2.9673342,206.83,206.8,0.71]
[1759232254759,2.2473342,206.83,206.81,0.71]
[1759232254957,2.2473342,206.83,206.79,18.43136824]
[1759232255266,2.2473342,206.83,206.8,0.71]
[1759232255577,24.04584695,206.87,206.78,52.17161989]
[1759232255749,24.04584695,206.87,206.8,0.71]
[1759232255750,2.2473342,206.82,206.8,0.71]
[1759232256077,2.2473342,206.82,206.78,52.90161989]
[1759232256377,2.2473342,206.82,206.79,0.71]
[1759232258180,2.2473342,206.82,206.79,5.54573453]
[1759232258558,2.9673342,206.83,206.79,5.54573453]
[1759232262176,0.66,206.82,206.79,4.83573453]
[1759232262878,2.2473342,206.83,206.79,4.83573453]
[1759232262879,2.9073342,206.83,206.79,5.49573453]
[1759232263283,0.66,206.82,206.79,4.83573453]
[1759232263490,3.24708961,206.85,206.79,4.83573453]
[1759232263491,4.83447226,206.85,206.79,5.49573453]
[1759232263684,2.2473342,206.82,206.79,5.49573453]
[1759232264287,1.43901035,206.82,206.79,5.49573453]
[1759232264460,2.09901035,206.82,206.79,5.49573453]
[1759232265256,0.66,206.82,206.79,5.49573453]
[1759232265459,2.09901035,206.82,206.79,5.49573453]
[1759232265995,1.43901035,206.82,206.79,5.49573453]
[1759232267391,1.43901035,206.82,206.8,4.83552787]
[1759232269502,2.09901035,206.82,206.8,4.83552787]
[1759232270182,1.43901035,206.82,206.8,4.83552787]
[1759232271519,1.43901035,206.82,206.79,5.49578196]
[1759232272106,2.09901035,206.82,206.79,5.49578196]
[1759232272495,1.43901035,206.82,206.79,5.49578196]
[1759232272693,2.09901035,206.82,206.79,5.49578196]
[1759232273522,1.43901035,206.82,206.79,5.49578196]
[1759232274118,2.09901035,206.82,206.79,5.49578196]
[1759232276110,1.43901035,206.82,206.79,5.49578196]
[1759232276789,1.43901035,206.82,206.78,47.31559401]
[1759232276790,0.66,206.81,206.78,47.31559401]
[1759232276981,0.66,206.8,206.78,47.31559401]
[1759232277182,0.66,206.81,206.78,47.97559401]
[1759232277585,2.09901035,206.8,206.75,5.49656864]
[1759232277800,0.66,206.79,206.76,0.66]
[1759232277993,2.09901035,206.8,206.76,0.66]
[1759232278985,0.66,206.8,206.76,5.49641097]
[1759232279186,1.43901035,206.79,206.76,5.49641097]
[1759232279889,1.43901035,206.79,206.77,0.66]
[1759232280786,1.43901035,206.79,206.75,38.55670855]
[1759232281101,0.66,206.78,206.75,0.66]
[1759232281410,0.66,206.78,206.75,14.25559401]
[1759232281610,1.43901035,206.79,206.75,13.59559401]
[1759232281814,2.09901035,206.79,206.75,14.25559401]
[1759232282017,0.66,206.78,206.75,19.09230434]
[1759232282216,1.43901035,206.79,206.76,0.66]
[1759232282703,2.09901035,206.79,206.75,18.43230434]
[1759232282911,0.66,206.78,206.75,19.09230434]
[1759232285016,1.43901035,206.79,206.76,0.66]
[1759232285204,1.43901035,206.79,206.76,5.49652277]
[1759232285516,1.43901035,206.79,206.77,0.66]
[1759232286408,22.23901035,206.8,206.78,0.66]
[1759232287615,1.43901035,206.8,206.78,0.66]
[1759232290112,2.09901035,206.8,206.76,5.49652544]
[1759232290317,1.43901035,206.8,206.77,0.66]
[1759232290619,2.09901035,206.8,206.77,0.66]
[1759232291718,1.43901035,206.8,206.77,5.49625566]
[1759232291929,1.43901035,206.8,206.77,0.66]
[1759232292096,1.43901035,206.78,206.75,14.25559401]
[1759232292295,1.43901035,206.78,206.76,0.67]
[1759232292497,1.43901035,206.78,206.77,0.67]
[1759232293211,1.43901035,206.79,206.77,0.67]
[1759232293821,0.72,206.8,206.77,5.50626943]
[1759232294024,1.43901035,206.79,206.77,5.50626943]
[1759232295020,1.43901035,206.79,206.77,4.83626943]
[1759232295528,1.43901035,206.79,206.77,5.50626943]
[1759232296731,1.43901035,206.79,206.76,4.83652544]
[1759232297027,2.10901035,206.79,206.76,5.49652544]
[1759232297230,1.43901035,206.79,206.76,4.83652544]
[1759232297535,1.43901035,206.79,206.76,5.49652544]
[1759232297827,2.10901035,206.79,206.76,5.49652544]
[1759232298229,1.43901035,206.79,206.76,5.49652544]
[1759232299029,2.10901035,206.79,206.76,0.66]
[1759232300509,2.10901035,206.79,206.75,39.21671495]
[1759232302459,1.43901035,206.78,206.76,0.66]
[1759232303034,1.43901035,206.78,206.76,5.4964938]
[1759232303840,1.43901035,206.78,206.77,0.66]
[1759232304037,1.43901035,206.78,206.76,4.8364938]
[1759232304333,1.43901035,206.78,206.76,5.4964938]
[1759232309051,0.67,206.79,206.76,5.4964938]
[1759232309219,2.10901035,206.79,206.76,5.4964938]
[1759232309742,2.10901035,206.79,206.76,0.66]
[1759232310049,0.67,206.78,206.75,38.55672071]
[1759232310353,2.10901035,206.78,206.75,38.55672071]
[1759232310849,1.43901035,206.78,206.76,0.66]
[1759232311536,1.43901035,206.78,206.77,4.83629153]
[1759232311743,1.43901035,206.78,206.77,5.49629153]
[1759232313851,1.43901035,206.78,206.76,5.49652544]
[1759232314224,1.43901035,206.78,206.77,0.66]
[1759232314718,80.3,206.8,206.77,0.66]
[1759232315156,80.3,206.8,206.78,33.72]
[1759232315452,80.3,206.8,206.79,0.66]
[1759232315945,80.3,206.8,206.79,5.49582378]
[1759232316128,1.43901035,206.82,206.79,5.49582378]
[1759232316328,2.10901035,206.82,206.79,5.49582378]
[1759232317229,1.43901035,206.82,206.79,4.83582378]
[1759232317550,1.43901035,206.8,206.78,33.72]
[1759232317750,1.43901035,206.8,206.78,38.55593961]
[1759232317928,1.43901035,206.8,206.78,5.49593961]
[1759232318128,1.43901035,206.8,206.79,33.72]
[1759232318543,1.43901035,206.8,206.78,5.49593961]
[1759232318723,1.43901035,206.8,206.78,39.21593961]
[1759232320454,1.43901035,206.8,206.78,33.72]
[1759232320946,1.43901035,206.81,206.78,39.21604209]
[1759232321154,2.10901035,206.81,206.78,39.21604209]
[1759232321547,3.25244968,206.83,206.79,0.66]
[1759232321747,1.43901035,206.82,206.8,0.66]
[1759232322352,1.43901035,206.83,206.8,0.67]
[1759232322534,2.13901035,206.83,206.8,0.67]
[1759232322736,2.13901035,206.83,206.79,5.50560373]
[1759232323554,1.43901035,206.83,206.79,4.83560373]
[1759232323757,81.73901035,206.84,206.8,5.50544032]
[1759232324058,81.73901035,206.84,206.81,0.67]
[1759232324352,81.73901035,206.84,206.82,0.67]
[1759232324656,73.89790457,206.86,206.82,0.67]
[1759232324823,1.43901035,206.84,206.82,0.67]
[1759232326331,2.24802564,206.84,206.82,0.67]
[1759232326832,2.94802564,206.84,206.81,4.83527029]
[1759232327045,2.94802564,206.84,206.81,5.50527029]
[1759232327336,2.94802564,206.84,206.8,5.50555013]
[1759232327536,2.24802564,206.83,206.8,5.50555013]
[1759232329230,2.94802564,206.83,206.8,13.59559401]
[1759232329460,2.24802564,206.82,206.79,0.67]
[1759232329857,2.94802564,206.83,206.8,0.67]
[1759232330536,0.7,206.84,206.8,0.67]
[1759232330762,2.24802564,206.83,206.8,0.67]
[1759232331058,5.49826359,206.83,206.8,0.67]
[1759232331359,0.7,206.82,206.79,38.53574718]
[1759232331766,6.19826359,206.83,206.79,39.20574718]
[1759232332143,2.94802564,206.83,206.79,39.20574718]
[1759232333062,2.94802564,206.83,206.8,0.67]
[1759232333756,2.24802564,206.83,206.8,0.67]
[1759232333942,2.24802564,206.83,206.79,38.53574718]
[1759232334146,2.94802564,206.83,206.8,0.67]
[1759232334550,2.24802564,206.83,206.8,0.67]
[1759232335061,2.24802564,206.84,206.81,0.67]
[1759232335233,80.3,206.85,206.81,0.67]
[1759232335440,2.24802564,206.84,206.82,0.67]
[1759232335941,2.24802564,206.84,206.83,0.67]
[1759232336146,82.54802564,206.85,206.83,0.67]
[1759232337344,80.3,206.85,206.83,5.50469565]
[1759232337552,80.3,206.85,206.84,0.67]
[1759232337757,2.24802564,206.87,206.84,0.67]
[1759232338062,2.24802564,206.87,206.85,0.67]
[1759232338563,2.24802564,206.87,206.83,5.50469565]
[1759232338751,3.9484268,206.88,206.85,4.83442107]
[1759232338947,2.24802564,206.87,206.85,4.83442107]
[1759232340148,2.94802564,206.87,206.85,4.83442107]
[1759232340342,0.7,206.87,206.85,4.83442107]
[1759232340564,2.94802564,206.87,206.85,4.83442107]
[1759232341751,2.24802564,206.87,206.85,0.67]
[1759232342868,2.24802564,206.88,206.85,5.50425238]
[1759232343780,2.24802564,206.88,206.86,0.67]
[1759232344699,2.24802564,206.88,206.85,0.67]
[1759232345157,2.94802564,206.89,206.86,0.67]
[1759232345583,2.94802564,206.89,206.85,0.67]
[1759232345786,2.24802564,206.89,206.85,0.67]
[1759232345991,2.94802564,206.88,206.85,0.67]
[1759232346355,2.94802564,206.88,206.84,5.5046548]
[1759232346891,2.94802564,206.88,206.85,0.67]
[1759232347078,35.34016722,206.91,206.86,0.67]
[1759232347279,0.7,206.9,206.87,0.67]
[1759232347584,2.24802565,206.91,206.87,0.67]
[1759232347886,2.24802565,206.91,206.88,13.59559401]
[1759232348180,2.24802565,206.91,206.88,14.26559401]
[1759232348677,2.24802565,206.91,206.88,13.59559401]
[1759232348988,1e-08,206.91,206.89,5.50348639]
[1759232350491,1e-08,206.91,206.9,0.67]
[1759232351284,1e-08,206.91,206.9,2.91802564]
[1759232353774,1e-08,206.91,206.9,7.75127841]
[1759232354481,1e-08,206.91,206.9,22.60974771]
[1759232355181,1e-08,206.91,206.9,7.75127841]
[1759232359191,1e-08,206.91,206.9,5.50325277]
[1759232359965,1e-08,206.91,206.88,47.59398374]
[1759232360193,0.66,206.9,206.89,33.68]
[1759232360370,2.90802564,206.9,206.87,33.68]
[1759232360575,0.66,206.89,206.87,33.68]
[1759232361394,0.66,206.89,206.87,38.51393689]
[1759232361791,2.24802564,206.9,206.87,38.51393689]
[1759232361982,2.24802564,206.9,206.88,0.67]
[1759232362178,2.24802564,206.9,206.87,38.51393689]
[1759232362382,2.90802564,206.9,206.87,38.51393689]
[1759232363799,2.90802564,206.9,206.87,39.18393689]
[1759232364096,2.90802564,206.9,206.87,38.51393689]
[1759232364399,2.90802564,206.9,206.87,39.18393689]
[1759232365799,2.90802564,206.9,206.87,5.50393689]
[1759232365983,2.90802564,206.9,206.87,39.18393689]
[1759232367397,2.24802564,206.9,206.87,39.18393689]
[1759232367700,2.90802565,206.91,206.87,39.18393689]
[1759232368274,2.90802565,206.91,206.87,38.51393689]
[1759232368474,2.90802565,206.91,206.88,0.67]
[1759232368702,2.90802565,206.91,206.87,39.18393689]
[1759232370108,2.90802565,206.91,206.87,5.50393689]
[1759232370399,2.90802565,206.91,206.88,38.51368084]
[1759232371196,0.66,206.9,206.88,38.51368084]
[1759232371403,2.24802565,206.91,206.88,33.68]
[1759232371699,2.90802565,206.91,206.88,34.35]
[1759232372102,2.90802565,206.91,206.88,39.18367208]
[1759232374488,1e-08,206.91,206.89,0.67]
[1759232375409,1e-08,206.91,206.9,33.68]
[1759232376706,1e-08,206.91,206.9,38.51325277]
[1759232376913,1e-08,206.91,206.9,39.18325277]
[1759232385622,0.67000001,206.91,206.9,4.83325277]
[1759232385919,0.67000001,206.91,206.9,38.51325277]
[1759232386296,1e-08,206.91,206.9,38.51325277]
[1759232386808,0.67000001,206.91,206.89,4.83342413]
[1759232387016,1e-08,206.91,206.9,33.68]
[1759232388295,0.67000001,206.91,206.88,4.83368887]
[1759232388512,0.67000001,206.91,206.89,33.68]
[1759232390295,1e-08,206.91,206.9,4.83325277]
[1759232390700,0.67000001,206.91,206.9,4.83325277]
[1759232390915,1e-08,206.91,206.9,4.83325277]
[1759232391511,0.67000001,206.91,206.9,4.83325277]
[1759232393523,0.67000001,206.91,206.9,5.53325277]
[1759232393524,1e-08,206.91,206.9,5.53325277]
[1759232393719,0.67000001,206.91,206.89,38.51344749]
[1759232394916,1e-08,206.91,206.89,38.51344749]
[1759232395110,0.67,206.9,206.89,33.68]
[1759232395417,2.10754356,206.9,206.89,33.68]
[1759232395815,1.43754356,206.9,206.88,38.49368518]
[1759232396120,1.43754356,206.9,206.88,39.19368518]
[1759232396291,1.43754357,206.91,206.88,38.49368518]
[1759232396494,2.10754357,206.91,206.88,39.19368518]
[1759232396695,2.10754357,206.91,206.88,5.53368518]